[Event "ESP-ch Teams Honor 2024"]
[Site "Melilla"]
[Date "2024.10.16"]
[Round "5.22"]
[White "Illescas Cordoba, Miguel"]
[Black "Muzychuk, Anna"]
[Result "1/2-1/2"]
[ECO "D47"]
[WhiteElo "2600"]
[BlackElo "2524"]
[Annotator "RC"]
[PlyCount "58"]
[EventDate "2024.10.11"]
[EventType "team-tourn"]
[EventCountry "ESP"]
[SourceTitle "playchess.com"]
[Source "ChessBase"]
[SourceQuality "1"]
[WhiteTeam "Casablanca"]
[BlackTeam "Costa Calida"]
[TimeControl "5400+30"]

1. c4 {[%emt 0:00:17]} e6 {[%emt 0:00:23]} 2. Nf3 {[%emt 0:00:39]} d5 {[%emt 0:00:10]} 3. d4 {[%emt 0:00:33]} Nf6 {[%emt 0:00:15]} 4. Nc3 {[%emt 0:01:55]} c6 {[%emt 0:00:27]} 5. e3 {[%emt 0:00:25]} Nbd7 {[%emt 0:00:12]} 6. Bd3 {[%emt 0:00:39]} dxc4 {[%emt 0:00:43]} 7. Bxc4 {[%emt 0:00:05]} b5 {[%emt 0:00:16]} 8. Bd3 {[%emt 0:00:21]} b4 {[%emt 0:00:39]} 9. Ne4 {[%emt 0:00:44]} Nxe4 {[%emt 0:00:22]} 10. Bxe4 {[%emt 0:00:05]} Bb7 {[%emt 0:00:17]} 11. O-O {[%emt 0:06:21]} Be7 {[%emt 0:01:15]} 12. a3 {[%emt 0:03:10]} a5 {[%emt 0:01:48]} 13. Qc2 {[%emt 0:08:28]} Qb6 {[%emt 0:08:16]} 14. axb4 {[%emt 0:01:40]} axb4 {[%emt 0:00:15]} 15. Rxa8+ {[%emt 0:00:52]} Bxa8 {[%emt 0:00:02]} 16. Nd2 {[%emt 0:05:32]} Nf6 {[%emt 0:15:53]} 17. Bf3 {[%emt 0:00:15]} O-O {[%emt 0:00:20]} 18. Nb3 {[%emt 0:00:21]} Nd7 {[%emt 0:04:41]} 19. e4 {[%emt 0:00:28]} Bb7 {[%emt 0:08:59]} 20. Be3 {[%emt 0:00:31]} Rc8 {[%emt 0:00:55]} 21. Rc1 {[%emt 0:05:50]} Ba6 {[%emt 0:02:12]} 22. Be2 {[%emt 0:01:42]} h6 {[%emt 0:03:15]} 23. h3 {[%emt 0:07:28]} Bf8 {[%emt 0:02:32]} 24. Bxa6 {[%emt 0:04:43]} Qxa6 {[%emt 0:00:01]} 25. Ra1 {[%emt 0:01:32]} Qb7 {[%emt 0:01:04]} 26. Rc1 {[%emt 0:02:34]} Qa8 {[%emt 0:06:16]} 27. Ra1 {[%emt 0:12:00]} Qb7 {[%emt 0:00:05]} 28. Qc4 {[%emt 0:01:17]} Nb6 {[%emt 0:02:21]} 29. Qc2 {[%emt 0:03:21]} Nd7 1/2-1/2

[Event "ESP-ch Teams Honor 2024"]
[Site "Melilla"]
[Date "2024.10.16"]
[Round "5.23"]
[White "Cuenca Jimenez, Jose Fernando"]
[Black "Gines Esteo, Pedro Antonio"]
[Result "1/2-1/2"]
[ECO "D41"]
[WhiteElo "2480"]
[BlackElo "2477"]
[Annotator "RC"]
[PlyCount "61"]
[EventDate "2024.10.11"]
[EventType "team-tourn"]
[EventCountry "ESP"]
[SourceTitle "playchess.com"]
[Source "ChessBase"]
[SourceQuality "1"]
[WhiteTeam "Costa Calida"]
[BlackTeam "Casablanca"]
[TimeControl "5400+30"]

1. d4 {[%emt 0:00:20]} Nf6 {[%emt 0:00:20]} 2. c4 {[%emt 0:00:35]} e6 {[%emt 0:00:09]} 3. Nf3 {[%emt 0:00:58]} d5 {[%emt 0:01:03]} 4. Nc3 {[%emt 0:00:07]} c5 {[%emt 0:02:17]} 5. cxd5 {[%emt 0:01:28]} Nxd5 {[%emt 0:00:38]} 6. e4 {[%emt 0:00:20]} Nxc3 {[%emt 0:00:10]} 7. bxc3 {[%emt 0:00:04]} cxd4 {[%emt 0:00:06]} 8. cxd4 {[%emt 0:00:03]} Bb4+ {[%emt 0:00:05]} 9. Bd2 {[%emt 0:00:03]} Bxd2+ {[%emt 0:00:07]} 10. Qxd2 {[%emt 0:00:03]} O-O {[%emt 0:00:07]} 11. Bc4 {[%emt 0:01:05]} Nd7 {[%emt 0:00:30]} 12. O-O {[%emt 0:00:08]} b6 {[%emt 0:00:05]} 13. Rad1 {[%emt 0:00:06]} Bb7 {[%emt 0:00:05]} 14. Rfe1 {[%emt 0:00:04]} Rc8 {[%emt 0:00:04]} 15. Bb3 {[%emt 0:00:03]} Re8 {[%emt 0:01:12]} 16. h3 {[%emt 0:00:50]} h6 {[%emt 0:00:57]} 17. Re3 {[%emt 0:05:03]} Nf6 {[%emt 0:01:29]} 18. Qe2 {[%emt 0:01:33]} Qc7 {[%emt 0:00:38]} 19. Ne5 {[%emt 0:14:38]} b5 {[%emt 0:00:59]} 20. Ng4 {[%emt 0:01:15]} Nxg4 {[%emt 0:00:28]} 21. hxg4 {[%emt 0:00:36]} Qf4 {[%emt 0:00:47]} 22. Qxb5 {[%emt 0:05:22]} Bxe4 {[%emt 0:00:20]} 23. d5 {[%emt 0:00:24]} exd5 {[%emt 0:25:50]} 24. Bxd5 {[%emt 0:15:35]} Re5 {[%emt 0:02:04]} 25. Qb7 {[%emt 0:22:49]} Rce8 {[%emt 0:02:56]} 26. Rxe4 {[%emt 0:02:35]} Rxe4 {[%emt 0:00:09]} 27. Bxe4 {[%emt 0:00:04]} Qxe4 {[%emt 0:00:17]} 28. Qxe4 {[%emt 0:06:29]} Rxe4 {[%emt 0:00:04]} 29. Rd8+ {[%emt 0:02:07]} Kh7 {[%emt 0:00:15]} 30. Rd7 {[%emt 0:00:05]} Rxg4 {[%emt 0:07:59]} 31. Rxa7 {[%emt 0:00:31]} 1/2-1/2